﻿Department Family,Entity,Date,Expense Type,Expense Area,Supplier,Transaction Number,AP Amount,VAT Registration Number,Purchase Invoice Number
Department of Health,Southport and Ormskirk Hospital NHS Trust,2019-04-30,Non NHS Prepayments,Balance Sheet,WEST LANCASHIRE BOROUGH COUNCIL,30109109,28728,165632458,1223399904031928728
Department of Health,Southport and Ormskirk Hospital NHS Trust,2019-04-30,NonRes Bldg Additions,Balance Sheet,VEOLIA WATER TECHNOLOGIES,30138141,43583.54,207803479,52114949
Department of Health,Southport and Ormskirk Hospital NHS Trust,2019-04-30,NonNHS Trade Pybls Curr,Balance Sheet,ROWLANDS PHARMACY,30159784,185987.97,741706443,1800000168
Department of Health,Southport and Ormskirk Hospital NHS Trust,2019-04-30,Other Clinical Costs,Pharmacy,ROWLANDS PHARMACY,30159784,36393,741706443,1800000168
Department of Health,Southport and Ormskirk Hospital NHS Trust,2019-04-30,Other Operatg Rev Non NHS,Pharmacy,ROWLANDS PHARMACY,30159784,-250.7,741706443,1800000168
Department of Health,Southport and Ormskirk Hospital NHS Trust,2019-04-30,Prescription Charges Rev,Pharmacy,ROWLANDS PHARMACY,30159784,-2912.8,741706443,1800000168
Department of Health,Southport and Ormskirk Hospital NHS Trust,2019-04-30,Other NHS Payables <1Yr,Balance Sheet,NHS PROFESSIONALS LTD,30159786,117465.4,654434043,I000016966P
Department of Health,Southport and Ormskirk Hospital NHS Trust,2019-04-30,Services Received - NHSTs,External PMO,NHS SOUTH SEFTON CCG,30159787,70027,,7013001000
Department of Health,Southport and Ormskirk Hospital NHS Trust,2019-04-30,Other NHS Payables <1Yr,Balance Sheet,NHS PROFESSIONALS LTD,30159789,142827.84,654434043,I000017020P
Department of Health,Southport and Ormskirk Hospital NHS Trust,2019-04-30,Other NHS Payables <1Yr,Balance Sheet,NHS PROFESSIONALS LTD,30159793,103524.62,654434043,I000017110P
Department of Health,Southport and Ormskirk Hospital NHS Trust,2019-04-30,NHS Prepayments,Balance Sheet,ST HELENS & KNOWSLEY HOSPITALS NHS TRUST,30159794,28032.98,654943996,16783811
Department of Health,Southport and Ormskirk Hospital NHS Trust,2019-04-30,Stocks Finished Goods,Balance Sheet,NHS BLOOD & TRANSPLANT,30159816,42083.58,654961603,878434
Department of Health,Southport and Ormskirk Hospital NHS Trust,2019-04-30,NonNHS Trade Pybls Curr,Balance Sheet,SUPPLY CHAIN COORDINATION LIMITED,30159817,44350.05,290885854,1019261286
Department of Health,Southport and Ormskirk Hospital NHS Trust,2019-04-30,Non NHS Prepayments,Balance Sheet,WEST LANCASHIRE BOROUGH COUNCIL,30162265,481320,165632458,12234027040319481320
Department of Health,Southport and Ormskirk Hospital NHS Trust,2019-04-30,Non NHS Prepayments,Balance Sheet,SEFTON METROPOLITAN BOROUGH COUNCIL,30162266,569520,165662152,76120782150319569520
Department of Health,Southport and Ormskirk Hospital NHS Trust,2019-04-30,Other NHS Payables <1Yr,Balance Sheet,NHS PROFESSIONALS LTD,30178519,148944.6,654434043,I000017160P
Department of Health,Southport and Ormskirk Hospital NHS Trust,2019-04-30,Med Equip Additions,Balance Sheet,DE SOUTTER MEDICAL LTD,30181347,84389.76,541298344,0000492880
Department of Health,Southport and Ormskirk Hospital NHS Trust,2019-04-30,Energy Management Contr,Utilities SDGH,VEOLIA ENERGY & UTILITY SERVICES UK PLC,30188951,-85580.42,GB530008893_1,90189279
Department of Health,Southport and Ormskirk Hospital NHS Trust,2019-04-30,Energy Management Contr,Utilities ODGH,VEOLIA ENERGY & UTILITY SERVICES UK PLC,30190681,-37328.28,GB530008893_1,90184204
Department of Health,Southport and Ormskirk Hospital NHS Trust,2019-04-30,Computer Maintenance,IT,DELL CORPORATION LTD,30219495,71178.04,635823528,7402517962
Department of Health,Southport and Ormskirk Hospital NHS Trust,2019-04-30,Energy Management Contr,Utilities ODGH,VEOLIA ENERGY & UTILITY SERVICES UK PLC,30220002,37328.28,GB530008893_1,90180614
Department of Health,Southport and Ormskirk Hospital NHS Trust,2019-04-30,Electricity,Utilities SDGH,NPOWER LTD,30220035,46092.62,768362492,K5050003LGWBNDBT
Department of Health,Southport and Ormskirk Hospital NHS Trust,2019-04-30,Energy Management Contr,Utilities SDGH,VEOLIA ENERGY & UTILITY SERVICES UK PLC,30220043,145606.32,GB530008893_1,90190679
Department of Health,Southport and Ormskirk Hospital NHS Trust,2019-04-30,Income tax - Current,Balance Sheet,INLAND REVENUE CIS,30227327,1083484.69,,428PD00129150B1912
Department of Health,Southport and Ormskirk Hospital NHS Trust,2019-04-30,National Insurance - Curr,Balance Sheet,INLAND REVENUE CIS,30227327,5760.42,,428PD00129150B1912
Department of Health,Southport and Ormskirk Hospital NHS Trust,2019-04-30,Income tax - Current,Balance Sheet,INLAND REVENUE CIS,30245653,39195.4,,428PZ001404851219
Department of Health,Southport and Ormskirk Hospital NHS Trust,2019-04-30,National Insurance - Curr,Balance Sheet,INLAND REVENUE CIS,30245653,49929.98,,428PZ001404851219
Department of Health,Southport and Ormskirk Hospital NHS Trust,2019-04-30,Statutory Mat Pay - Curr,Balance Sheet,INLAND REVENUE CIS,30245653,-2671.4,,428PZ001404851219
Department of Health,Southport and Ormskirk Hospital NHS Trust,2019-04-30,Stocks Finished Goods,Balance Sheet,HEALTHCARE AT HOME LTD,30245957,28200,873342418-1,OP/8040928
Department of Health,Southport and Ormskirk Hospital NHS Trust,2019-04-30,Computer Software/License,Senior Finance,IQVIA TECHNOLOGY SERVICES LTD,30251349,33500,678124612,4122003678
Department of Health,Southport and Ormskirk Hospital NHS Trust,2019-04-30,IT Additions,Balance Sheet,KAINOS SOFTWARE LTD,30268670,50716.8,,INV016274
Department of Health,Southport and Ormskirk Hospital NHS Trust,2019-04-30,Computer Maintenance,Pharmacy,ASCRIBE LTD T/A EMIS HEALTH,30269370,61583.06,927 1492 14,PJIN301908
Department of Health,Southport and Ormskirk Hospital NHS Trust,2019-04-30,Other NHS Payables <1Yr,Balance Sheet,NHS PROFESSIONALS LTD,30297672,125197.2,654434043,I000017234P
Department of Health,Southport and Ormskirk Hospital NHS Trust,2019-04-30,NonNHS Trade Pybls Curr,Balance Sheet,SUPPLY CHAIN COORDINATION LIMITED,30297675,72042.78,290885854,1010000713
Department of Health,Southport and Ormskirk Hospital NHS Trust,2019-04-30,Other NHS Payables <1Yr,Balance Sheet,NHS PROFESSIONALS LTD,30297678,148238.88,654434043,I000017291P
Department of Health,Southport and Ormskirk Hospital NHS Trust,2019-04-30,Contr Other External,Senior Finance,WARRINGTON & HALTON HOSPITALS NHS FOUNDATION TRUST,30297680,45000,654404741,15373332
Department of Health,Southport and Ormskirk Hospital NHS Trust,2019-04-30,Data Lines,IT,VIRGIN MEDIA BUSINESS LTD,30297682,29294.4,591819014,932072057
Department of Health,Southport and Ormskirk Hospital NHS Trust,2019-04-30,Other NHS Payables <1Yr,Balance Sheet,NHS PROFESSIONALS LTD,30297684,105580.57,654434043,I000017370P
Department of Health,Southport and Ormskirk Hospital NHS Trust,2019-04-30,NHS Prepayments,Balance Sheet,NHS BLOOD & TRANSPLANT,30297686,42083.58,654961603,879179
Department of Health,Southport and Ormskirk Hospital NHS Trust,2019-04-30,NHS Prepayments,Balance Sheet,ST HELENS & KNOWSLEY HOSPITALS NHS TRUST,30297688,360000,654943996,16784165
Department of Health,Southport and Ormskirk Hospital NHS Trust,2019-04-30,External Consultancy Fees,Information,IQVIA TECHNOLOGY SERVICES LTD,30327066,29700,678124612,4122003629
Department of Health,Southport and Ormskirk Hospital NHS Trust,2019-04-30,External Consultancy Fees,Information,IQVIA TECHNOLOGY SERVICES LTD,30327073,29700,678124612,4122003677
Department of Health,Southport and Ormskirk Hospital NHS Trust,2019-04-30,Commercial Sector,SIU Intermediate Care Team,REVITALISE RESPITE HOLIDAYS,30336607,29920,,555539
Department of Health,Southport and Ormskirk Hospital NHS Trust,2019-04-30,Other NHS Payables <1Yr,Balance Sheet,NHS PROFESSIONALS LTD,30366760,145665.7,654434043,I000017450P
Department of Health,Southport and Ormskirk Hospital NHS Trust,2019-04-30,Other NHS Payables <1Yr,Balance Sheet,NHS PROFESSIONALS LTD,30366769,111393.49,654434043,I000017506P
Department of Health,Southport and Ormskirk Hospital NHS Trust,2019-04-30,Other NHS Payables <1Yr,Balance Sheet,NHS PROFESSIONALS LTD,30366786,62005.98,654434043,I000017553P
Department of Health,Southport and Ormskirk Hospital NHS Trust,2019-04-30,NonNHS Trade Pybls Curr,Balance Sheet,SUPPLY CHAIN COORDINATION LIMITED,30366854,56888.16,290885854,1010018206
Department of Health,Southport and Ormskirk Hospital NHS Trust,2019-04-30,Computer Maintenance,IT,ASCRIBE LTD T/A EMIS HEALTH,30372758,26422.16,927 1492 14,PJIN301972